[Event "Titled Tuesday Blitz August 1 Early 2023"]
[White "Palczert, Matyas"]
[Black "Pavlidou, Ekaterini"]
[WhiteFideId "784958"]
[BlackFideId "4213262"]
[WhiteElo "2524"]
[BlackElo "2337"]
[Result "1-0"]
[Round "2"]
[TimeControl "180+1"]
[Date "2023.08.01"]
[WhiteClock "0:00:12"]
[BlackClock "0:00:19"]
[Board "185"]

1. b3 {[%clk 0:02:59]}  c5 {[%clk 0:02:59]} 2. Bb2 {[%clk 0:02:58]}  Nc6 {[%clk 0:03:00]} 3. c4 {[%clk 0:02:55]}  e5 {[%clk 0:03:00]} 4. Nc3 {[%clk 0:02:52]}  d6 {[%clk 0:03:00]} 5. g3 {[%clk 0:02:49]}  f5 {[%clk 0:03:00]} 6. Bg2 {[%clk 0:02:50]}  Nf6 {[%clk 0:03:01]} 7. d3 {[%clk 0:02:48]}  Be7 {[%clk 0:03:01]} 8. e3 {[%clk 0:02:45]}  O-O {[%clk 0:03:01]} 9. Nge2 {[%clk 0:02:45]}  Be6 {[%clk 0:03:01]} 10. O-O {[%clk 0:02:46]}  g5 {[%clk 0:03:00]} 11. f4 {[%clk 0:02:44]}  h6 {[%clk 0:02:56]} 12. Nd5 {[%clk 0:02:44]}  Rf7 {[%clk 0:02:46]} 13. Qd2 {[%clk 0:02:31]}  Bf8 {[%clk 0:02:41]} 14. e4 {[%clk 0:02:24]}  Bxd5 {[%clk 0:02:21]} 15. exd5 {[%clk 0:02:19]}  Nd4 {[%clk 0:02:15]} 16. Bxd4 {[%clk 0:02:15]}  exd4 {[%clk 0:02:02]} 17. fxg5 {[%clk 0:02:14]}  Ng4 {[%clk 0:02:02]} 18. g6 {[%clk 0:02:07]}  Rf6 {[%clk 0:01:58]} 19. Nf4 {[%clk 0:02:07]}  Ne3 {[%clk 0:01:56]} 20. Ne6 {[%clk 0:02:07]}  Qe8 {[%clk 0:01:45]} 21. Nc7 {[%clk 0:02:04]}  Qc8 {[%clk 0:01:39]} 22. Nxa8 {[%clk 0:02:03]}  Nxf1 {[%clk 0:01:37]} 23. Rxf1 {[%clk 0:02:02]}  Qxa8 {[%clk 0:01:38]} 24. Bh3 {[%clk 0:01:58]}  Qc8 {[%clk 0:01:32]} 25. Qe2 {[%clk 0:01:53]}  Kg7 {[%clk 0:01:19]} 26. Re1 {[%clk 0:01:25]}  Rxg6 {[%clk 0:01:11]} 27. Qf3 {[%clk 0:01:20]}  Rf6 {[%clk 0:01:03]} 28. Kf2 {[%clk 0:01:08]}  Qd7 {[%clk 0:01:02]} 29. Re6 {[%clk 0:00:57]}  Rxe6 {[%clk 0:00:40]} 30. dxe6 {[%clk 0:00:58]}  Qxe6 {[%clk 0:00:38]} 31. Bxf5 {[%clk 0:00:58]}  Qf7 {[%clk 0:00:38]} 32. Bc8 {[%clk 0:00:52]}  Qxf3+ {[%clk 0:00:33]} 33. Kxf3 {[%clk 0:00:53]}  b6 {[%clk 0:00:34]} 34. Ke4 {[%clk 0:00:53]}  Kf6 {[%clk 0:00:34]} 35. Kd5 {[%clk 0:00:53]}  Ke7 {[%clk 0:00:30]} 36. Kc6 {[%clk 0:00:53]}  Kd8 {[%clk 0:00:31]} 37. Kb7 {[%clk 0:00:53]}  Be7 {[%clk 0:00:29]} 38. Be6 {[%clk 0:00:52]}  Bg5 {[%clk 0:00:28]} 39. Bd5 {[%clk 0:00:50]}  Be3 {[%clk 0:00:26]} 40. Kxa7 {[%clk 0:00:46]}  Kc7 {[%clk 0:00:26]} 41. Ka6 {[%clk 0:00:46]}  Bd2 {[%clk 0:00:25]} 42. Kb5 {[%clk 0:00:46]}  Be3 {[%clk 0:00:25]} 43. Ka4 {[%clk 0:00:45]}  Bd2 {[%clk 0:00:22]} 44. g4 {[%clk 0:00:40]}  Bc1 {[%clk 0:00:19]} 45. b4 {[%clk 0:00:29]}  Bd2 {[%clk 0:00:17]} 46. bxc5 {[%clk 0:00:29]}  dxc5 {[%clk 0:00:18]} 47. Kb5 {[%clk 0:00:26]}  Be1 {[%clk 0:00:16]} 48. Ka4 {[%clk 0:00:21]}  Bd2 {[%clk 0:00:16]} 49. Kb3 {[%clk 0:00:21]}  Be3 {[%clk 0:00:16]} 50. Kc2 {[%clk 0:00:22]}  Kd6 {[%clk 0:00:17]} 51. Kd1 {[%clk 0:00:22]}  Ke5 {[%clk 0:00:17]} 52. Ke2 {[%clk 0:00:22]}  Kf4 {[%clk 0:00:18]} 53. Be6 {[%clk 0:00:20]}  Bg1 {[%clk 0:00:18]} 54. h3 {[%clk 0:00:20]}  Kg3 {[%clk 0:00:18]} 55. Bf5 {[%clk 0:00:16]}  Be3 {[%clk 0:00:19]} 56. Kd1 {[%clk 0:00:14]}  Bg5 {[%clk 0:00:19]} 57. Kc2 {[%clk 0:00:14]}  Kxh3 {[%clk 0:00:19]} 58. Kb3 {[%clk 0:00:14]}  Bd2 {[%clk 0:00:19]} 59. g5+ {[%clk 0:00:12]}  Kh4 {[%clk 0:00:20]} 60. g6 {[%clk 0:00:12]}  Kg5 {[%clk 0:00:19]} 61. g7 {[%clk 0:00:12]}  Kxf5 {[%clk 0:00:19]} 62. g8=Q {[%clk 0:00:12]}  Kf4 {[%clk 0:00:19]} 63. Qg2 {[%clk 0:00:12]}  Ke3 {[%clk 0:00:20]} 64. Kc2 {[%clk 0:00:10]}  Bc3 {[%clk 0:00:19]} 65. Qh3+ {[%clk 0:00:10]}  Ke2 {[%clk 0:00:19]} 66. Qxh6 {[%clk 0:00:11]}  Kf3 {[%clk 0:00:19]} 67. Qxb6 {[%clk 0:00:11]}  Ke3 {[%clk 0:00:19]} 68. a4 {[%clk 0:00:11]}  Bd2 {[%clk 0:00:19]} 69. a5 {[%clk 0:00:11]}  Bb4 {[%clk 0:00:19]} 70. a6 {[%clk 0:00:12]}  Kf4 {[%clk 0:00:19]} 71. a7 {[%clk 0:00:12]}  Ke3 {[%clk 0:00:20]} 72. a8=Q {[%clk 0:00:12]}  Ke2 {[%clk 0:00:19]} 73. Qe4+ {[%clk 0:00:12]} 1-0


[Site "https://www.chess.com"]

[Event "Titled Tuesday Blitz August 1 Early 2023"]
[White "Gutkin, Ilya"]
[Black "Elissalt Cardenas, Hector"]
[WhiteFideId "16203470"]
[BlackFideId "3500632"]
[WhiteElo "2514"]
[BlackElo "2334"]
[Result "0-1"]
[Round "2"]
[TimeControl "180+1"]
[Date "2023.08.01"]
[WhiteClock "0:00:02"]
[BlackClock "0:00:23"]
[Board "186"]

1. e4 {[%clk 0:03:00]}  d6 {[%clk 0:02:56]} 2. d4 {[%clk 0:03:00]}  Nf6 {[%clk 0:02:53]} 3. f3 {[%clk 0:03:01]}  e5 {[%clk 0:02:52]} 4. dxe5 {[%clk 0:03:02]}  dxe5 {[%clk 0:02:50]} 5. Qxd8+ {[%clk 0:03:02]}  Kxd8 {[%clk 0:02:50]} 6. Bc4 {[%clk 0:03:03]}  Be6 {[%clk 0:02:48]} 7. Bxe6 {[%clk 0:03:03]}  fxe6 {[%clk 0:02:48]} 8. Be3 {[%clk 0:03:03]}  Bd6 {[%clk 0:02:47]} 9. Nd2 {[%clk 0:03:03]}  Nbd7 {[%clk 0:02:46]} 10. Ne2 {[%clk 0:03:03]}  Ke7 {[%clk 0:02:46]} 11. h4 {[%clk 0:03:01]}  h6 {[%clk 0:02:45]} 12. O-O-O {[%clk 0:02:55]}  a6 {[%clk 0:02:40]} 13. g4 {[%clk 0:02:46]}  Raf8 {[%clk 0:02:36]} 14. g5 {[%clk 0:02:26]}  hxg5 {[%clk 0:02:21]} 15. Bxg5 {[%clk 0:02:26]}  b5 {[%clk 0:02:01]} 16. Rdg1 {[%clk 0:02:24]}  Kf7 {[%clk 0:02:00]} 17. Rg2 {[%clk 0:01:51]}  Rh7 {[%clk 0:01:58]} 18. Rf1 {[%clk 0:01:49]}  Nh5 {[%clk 0:01:51]} 19. Kd1 {[%clk 0:01:30]}  Ke8 {[%clk 0:01:40]} 20. Nb3 {[%clk 0:01:25]}  Nf4 {[%clk 0:01:28]} 21. Bxf4 {[%clk 0:01:12]}  exf4 {[%clk 0:01:28]} 22. Nbd4 {[%clk 0:01:11]}  Rf6 {[%clk 0:01:21]} 23. Rfg1 {[%clk 0:00:54]}  Kf7 {[%clk 0:01:18]} 24. h5 {[%clk 0:00:46]}  Be5 {[%clk 0:01:14]} 25. c3 {[%clk 0:00:36]}  Bd6 {[%clk 0:01:10]} 26. Rg5 {[%clk 0:00:35]}  Ne5 {[%clk 0:01:05]} 27. b4 {[%clk 0:00:29]}  Nc4 {[%clk 0:00:54]} 28. Ke1 {[%clk 0:00:22]}  Ne5 {[%clk 0:00:52]} 29. Kf2 {[%clk 0:00:21]}  Nd3+ {[%clk 0:00:52]} 30. Kf1 {[%clk 0:00:21]}  Ne5 {[%clk 0:00:52]} 31. Rh1 {[%clk 0:00:13]}  Nd3 {[%clk 0:00:48]} 32. Rh3 {[%clk 0:00:12]}  Ne5 {[%clk 0:00:47]} 33. Rxe5 {[%clk 0:00:10]}  Bxe5 {[%clk 0:00:47]} 34. Nc6 {[%clk 0:00:11]}  Bd6 {[%clk 0:00:37]} 35. e5 {[%clk 0:00:11]}  Rf5 {[%clk 0:00:37]} 36. exd6 {[%clk 0:00:11]}  cxd6 {[%clk 0:00:37]} 37. Ncd4 {[%clk 0:00:10]}  Rfxh5 {[%clk 0:00:35]} 38. Rxh5 {[%clk 0:00:10]}  Rxh5 {[%clk 0:00:35]} 39. Kg2 {[%clk 0:00:07]}  e5 {[%clk 0:00:34]} 40. Nb3 {[%clk 0:00:07]}  Rh8 {[%clk 0:00:33]} 41. Nd2 {[%clk 0:00:08]}  Rc8 {[%clk 0:00:32]} 42. Ne4 {[%clk 0:00:07]}  Ke6 {[%clk 0:00:32]} 43. Ng5+ {[%clk 0:00:07]}  Kf5 {[%clk 0:00:30]} 44. Ne4 {[%clk 0:00:07]}  Ke6 {[%clk 0:00:30]} 45. Kh3 {[%clk 0:00:07]}  Rc4 {[%clk 0:00:28]} 46. Kg4 {[%clk 0:00:06]}  a5 {[%clk 0:00:26]} 47. a3 {[%clk 0:00:05]}  axb4 {[%clk 0:00:26]} 48. axb4 {[%clk 0:00:06]}  Rc8 {[%clk 0:00:25]} 49. Kg5 {[%clk 0:00:06]}  Rh8 {[%clk 0:00:25]} 50. Kg6 {[%clk 0:00:01]}  Rh2 {[%clk 0:00:24]} 51. Ng1 {[%clk 0:00:02]}  Rg2+ {[%clk 0:00:24]} 52. Kh7 {[%clk 0:00:02]}  Rxg1 {[%clk 0:00:24]} 53. Kg8 {[%clk 0:00:01]}  g5 {[%clk 0:00:24]} 54. Kg7 {[%clk 0:00:01]}  g4 {[%clk 0:00:24]} 55. fxg4 {[%clk 0:00:01]}  Rxg4+ {[%clk 0:00:24]} 56. Kh6 {[%clk 0:00:02]}  Rg1 {[%clk 0:00:23]} 57. Ng5+ {[%clk 0:00:02]}  Rxg5 {[%clk 0:00:23]} 58. Kxg5 {[%clk 0:00:02]}  f3 {[%clk 0:00:23]} 0-1


[Site "https://www.chess.com"]

[Event "Titled Tuesday Blitz August 1 Early 2023"]
[White "Nithyalakshmi, Sivanesan"]
[Black "Fernandez Lopez, Ruben"]
[WhiteFideId "5706955"]
[BlackFideId "24518298"]
[WhiteElo "2332"]
[BlackElo "2510"]
[Result "1-0"]
[Round "2"]
[TimeControl "180+1"]
[Date "2023.08.01"]
[WhiteClock "0:01:46"]
[BlackClock "0:01:57"]
[Board "189"]

1. e4 {[%clk 0:03:00]}  d5 {[%clk 0:02:59]} 2. exd5 {[%clk 0:03:00]}  Nf6 {[%clk 0:02:57]} 3. Bb5+ {[%clk 0:02:59]}  Bd7 {[%clk 0:02:57]} 4. Bc4 {[%clk 0:02:57]}  Bg4 {[%clk 0:02:57]} 5. f3 {[%clk 0:02:51]}  Bf5 {[%clk 0:02:56]} 6. Nc3 {[%clk 0:02:50]}  Nbd7 {[%clk 0:02:55]} 7. d3 {[%clk 0:02:45]}  a6 {[%clk 0:02:55]} 8. Be3 {[%clk 0:02:41]}  h5 {[%clk 0:02:42]} 9. Nge2 {[%clk 0:02:39]}  h4 {[%clk 0:02:42]} 10. Bb3 {[%clk 0:02:29]}  h3 {[%clk 0:02:42]} 11. g4 {[%clk 0:02:28]}  Bg6 {[%clk 0:02:43]} 12. Ng3 {[%clk 0:02:27]}  Ne5 {[%clk 0:02:33]} 13. Qe2 {[%clk 0:02:24]}  c6 {[%clk 0:02:22]} 14. dxc6 {[%clk 0:02:22]}  Nxc6 {[%clk 0:02:22]} 15. g5 {[%clk 0:02:17]}  Nh5 {[%clk 0:02:21]} 16. O-O-O {[%clk 0:02:12]}  e6 {[%clk 0:02:21]} 17. d4 {[%clk 0:02:09]}  Bb4 {[%clk 0:02:20]} 18. d5 {[%clk 0:02:07]}  exd5 {[%clk 0:02:17]} 19. Bc5+ {[%clk 0:02:04]}  Be4 {[%clk 0:02:11]} 20. Bxb4 {[%clk 0:02:02]}  Qxg5+ {[%clk 0:02:09]} 21. Kb1 {[%clk 0:02:00]}  Nf4 {[%clk 0:02:09]} 22. Qe3 {[%clk 0:01:52]}  Nxb4 {[%clk 0:02:08]} 23. fxe4 {[%clk 0:01:50]}  O-O {[%clk 0:02:05]} 24. Rhf1 {[%clk 0:01:47]}  Ne6 {[%clk 0:02:05]} 25. Qxg5 {[%clk 0:01:47]}  Nxg5 {[%clk 0:02:06]} 26. exd5 {[%clk 0:01:47]}  Rfe8 {[%clk 0:01:57]} 27. a3 {[%clk 0:01:46]} 1-0


[Site "https://www.chess.com"]

[Event "Titled Tuesday Blitz August 1 Early 2023"]
[White "Lehtosaari, Mauri"]
[Black "Vasques, Antonio Pedro Freixial"]
[WhiteFideId "501999"]
[BlackFideId "1908332"]
[WhiteElo "2501"]
[BlackElo "2316"]
[Result "1-0"]
[Round "2"]
[TimeControl "180+1"]
[Date "2023.08.01"]
[WhiteClock "0:00:51"]
[BlackClock "0:00:05"]
[Board "197"]

1. d4 {[%clk 0:02:52]}  Nf6 {[%clk 0:02:59]} 2. Nf3 {[%clk 0:02:52]}  g6 {[%clk 0:02:56]} 3. Bg5 {[%clk 0:02:52]}  Bg7 {[%clk 0:02:56]} 4. e3 {[%clk 0:02:51]}  O-O {[%clk 0:02:55]} 5. Nbd2 {[%clk 0:02:51]}  d6 {[%clk 0:02:54]} 6. Bc4 {[%clk 0:02:51]}  c6 {[%clk 0:02:53]} 7. O-O {[%clk 0:02:49]}  Nbd7 {[%clk 0:02:45]} 8. a4 {[%clk 0:02:42]}  e5 {[%clk 0:02:38]} 9. c3 {[%clk 0:02:40]}  a5 {[%clk 0:02:36]} 10. Bh4 {[%clk 0:02:31]}  e4 {[%clk 0:02:17]} 11. Nxe4 {[%clk 0:02:22]}  d5 {[%clk 0:02:14]} 12. Nxf6+ {[%clk 0:02:21]}  Bxf6 {[%clk 0:01:51]} 13. Bxf6 {[%clk 0:02:19]}  Qxf6 {[%clk 0:01:51]} 14. Be2 {[%clk 0:02:19]}  h5 {[%clk 0:01:51]} 15. Qd3 {[%clk 0:02:11]}  Nb6 {[%clk 0:01:50]} 16. b3 {[%clk 0:02:04]}  Bf5 {[%clk 0:01:49]} 17. Qd2 {[%clk 0:02:05]}  Kg7 {[%clk 0:01:46]} 18. Bd3 {[%clk 0:02:00]}  Bg4 {[%clk 0:01:46]} 19. Ne5 {[%clk 0:02:00]}  Rae8 {[%clk 0:01:39]} 20. c4 {[%clk 0:01:44]}  dxc4 {[%clk 0:01:23]} 21. bxc4 {[%clk 0:01:44]}  Rxe5 {[%clk 0:01:22]} 22. dxe5 {[%clk 0:01:41]}  Qxe5 {[%clk 0:01:23]} 23. Be2 {[%clk 0:01:36]}  Be6 {[%clk 0:01:22]} 24. Rfc1 {[%clk 0:01:35]}  Qc7 {[%clk 0:01:13]} 25. Qxa5 {[%clk 0:01:33]}  Ra8 {[%clk 0:01:05]} 26. Qc3+ {[%clk 0:01:31]}  Kh7 {[%clk 0:01:04]} 27. a5 {[%clk 0:01:32]}  Nd7 {[%clk 0:01:04]} 28. c5 {[%clk 0:01:28]}  Qd8 {[%clk 0:00:58]} 29. Bc4 {[%clk 0:01:23]}  Nxc5 {[%clk 0:00:53]} 30. Bxe6 {[%clk 0:01:22]}  Nxe6 {[%clk 0:00:54]} 31. a6 {[%clk 0:01:19]}  Rxa6 {[%clk 0:00:49]} 32. Rxa6 {[%clk 0:01:18]}  bxa6 {[%clk 0:00:50]} 33. Qxc6 {[%clk 0:01:18]}  Kg7 {[%clk 0:00:50]} 34. Qxa6 {[%clk 0:01:17]}  Qd2 {[%clk 0:00:50]} 35. Qa1+ {[%clk 0:01:17]}  Kh7 {[%clk 0:00:50]} 36. Qc3 {[%clk 0:01:17]}  Qe2 {[%clk 0:00:49]} 37. Qc2 {[%clk 0:01:17]}  Qg4 {[%clk 0:00:48]} 38. h3 {[%clk 0:01:17]}  Qb4 {[%clk 0:00:47]} 39. Qc3 {[%clk 0:01:16]}  Qe4 {[%clk 0:00:45]} 40. Qf6 {[%clk 0:01:13]}  Qb7 {[%clk 0:00:41]} 41. Rd1 {[%clk 0:01:10]}  Kg8 {[%clk 0:00:38]} 42. g3 {[%clk 0:01:05]}  Qb3 {[%clk 0:00:29]} 43. Rd7 {[%clk 0:00:58]}  Qd1+ {[%clk 0:00:05]} 44. Rxd1 {[%clk 0:00:51]} 1-0


[Site "https://www.chess.com"]

[Event "Titled Tuesday Blitz August 1 Early 2023"]
[White "Ardila, Oscar Humberto"]
[Black "Erzhanov, Arman"]
[WhiteFideId "4404742"]
[BlackFideId "4138821"]
[WhiteElo "2308"]
[BlackElo "2499"]
[Result "0-1"]
[Round "2"]
[TimeControl "180+1"]
[Date "2023.08.01"]
[WhiteClock "0:01:57"]
[BlackClock "0:01:53"]
[Board "198"]

1. d4 {[%clk 0:02:59]}  d6 {[%clk 0:03:00]} 2. Nf3 {[%clk 0:02:58]}  g6 {[%clk 0:02:59]} 3. c4 {[%clk 0:02:58]}  Bg7 {[%clk 0:02:59]} 4. Nc3 {[%clk 0:02:58]}  e5 {[%clk 0:02:59]} 5. d5 {[%clk 0:02:58]}  f5 {[%clk 0:02:54]} 6. e4 {[%clk 0:02:58]}  Nf6 {[%clk 0:02:54]} 7. Bg5 {[%clk 0:02:57]}  f4 {[%clk 0:02:51]} 8. Be2 {[%clk 0:02:56]}  Nbd7 {[%clk 0:02:49]} 9. O-O {[%clk 0:02:55]}  O-O {[%clk 0:02:49]} 10. Nd2 {[%clk 0:02:54]}  h6 {[%clk 0:02:48]} 11. Bxf6 {[%clk 0:02:54]}  Nxf6 {[%clk 0:02:49]} 12. h3 {[%clk 0:02:51]}  g5 {[%clk 0:02:49]} 13. Bg4 {[%clk 0:02:51]}  Bxg4 {[%clk 0:02:33]} 14. hxg4 {[%clk 0:02:51]}  Qd7 {[%clk 0:02:34]} 15. f3 {[%clk 0:02:51]}  h5 {[%clk 0:02:34]} 16. gxh5 {[%clk 0:02:44]}  Nxh5 {[%clk 0:02:35]} 17. Ne2 {[%clk 0:02:44]}  Kf7 {[%clk 0:02:34]} 18. Kf2 {[%clk 0:02:42]}  Rh8 {[%clk 0:02:34]} 19. Rh1 {[%clk 0:02:42]}  g4 {[%clk 0:02:33]} 20. fxg4 {[%clk 0:02:31]}  Qxg4 {[%clk 0:02:34]} 21. Nf3 {[%clk 0:02:31]}  Rag8 {[%clk 0:02:28]} 22. Qg1 {[%clk 0:02:30]}  Bf6 {[%clk 0:02:26]} 23. Ke1 {[%clk 0:02:20]}  Qxg2 {[%clk 0:02:23]} 24. Qxg2 {[%clk 0:02:20]}  Rxg2 {[%clk 0:02:24]} 25. Kf1 {[%clk 0:02:20]}  Rxe2 {[%clk 0:02:08]} 26. Kxe2 {[%clk 0:02:18]}  Ng3+ {[%clk 0:02:08]} 27. Kf2 {[%clk 0:02:10]}  Rxh1 {[%clk 0:02:07]} 28. Rxh1 {[%clk 0:02:08]}  Nxh1+ {[%clk 0:02:08]} 29. Kg2 {[%clk 0:02:09]}  Ng3 {[%clk 0:02:08]} 30. Kf2 {[%clk 0:02:03]}  Nxe4+ {[%clk 0:02:08]} 31. Ke2 {[%clk 0:02:03]}  Ng5 {[%clk 0:02:07]} 32. Nd2 {[%clk 0:02:02]}  e4 {[%clk 0:02:07]} 33. b4 {[%clk 0:02:02]}  Bd4 {[%clk 0:02:04]} 34. Nb3 {[%clk 0:02:02]}  f3+ {[%clk 0:02:04]} 35. Kf1 {[%clk 0:02:03]}  Be5 {[%clk 0:01:55]} 36. Kf2 {[%clk 0:02:02]}  Bf4 {[%clk 0:01:56]} 37. c5 {[%clk 0:01:58]}  e3+ {[%clk 0:01:55]} 38. Kf1 {[%clk 0:01:59]}  e2+ {[%clk 0:01:53]} 39. Kf2 {[%clk 0:01:57]}  Bg3+ {[%clk 0:01:53]} 0-1


[Site "https://www.chess.com"]

[Event "Titled Tuesday Blitz August 1 Early 2023"]
[White "Shubenkova, Veronika"]
[Black "Szente Varga, Fruzsina"]
[WhiteFideId "44124040"]
[BlackFideId "712264"]
[WhiteElo "2499"]
[BlackElo "2307"]
[Result "1-0"]
[Round "2"]
[TimeControl "180+1"]
[Date "2023.08.01"]
[WhiteClock "0:01:28"]
[BlackClock "0:00:00"]
[Board "199"]

1. c4 {[%clk 0:03:00]}  e5 {[%clk 0:02:57]} 2. Nc3 {[%clk 0:03:00]}  Nf6 {[%clk 0:02:53]} 3. g3 {[%clk 0:03:00]}  g6 {[%clk 0:02:53]} 4. Bg2 {[%clk 0:02:59]}  Bg7 {[%clk 0:02:53]} 5. d3 {[%clk 0:03:00]}  O-O {[%clk 0:02:53]} 6. e4 {[%clk 0:03:00]}  d6 {[%clk 0:02:53]} 7. Nge2 {[%clk 0:02:59]}  Be6 {[%clk 0:02:53]} 8. O-O {[%clk 0:02:58]}  Nc6 {[%clk 0:02:51]} 9. h3 {[%clk 0:02:58]}  Qd7 {[%clk 0:02:52]} 10. Kh2 {[%clk 0:02:57]}  Nd8 {[%clk 0:02:50]} 11. f4 {[%clk 0:02:57]}  c6 {[%clk 0:02:47]} 12. g4 {[%clk 0:02:56]}  exf4 {[%clk 0:02:46]} 13. Bxf4 {[%clk 0:02:55]}  Ne8 {[%clk 0:02:43]} 14. Ng3 {[%clk 0:02:45]}  Nc7 {[%clk 0:02:37]} 15. Rc1 {[%clk 0:02:44]}  a6 {[%clk 0:02:31]} 16. Rc2 {[%clk 0:02:44]}  b5 {[%clk 0:02:31]} 17. b3 {[%clk 0:02:43]}  b4 {[%clk 0:02:19]} 18. Nce2 {[%clk 0:02:42]}  c5 {[%clk 0:02:12]} 19. d4 {[%clk 0:02:42]}  cxd4 {[%clk 0:02:05]} 20. Nxd4 {[%clk 0:02:43]}  Rc8 {[%clk 0:02:02]} 21. Nxe6 {[%clk 0:02:42]}  Ndxe6 {[%clk 0:01:59]} 22. Qxd6 {[%clk 0:02:40]}  Rfd8 {[%clk 0:01:56]} 23. Qxb4 {[%clk 0:02:37]}  Nd4 {[%clk 0:01:53]} 24. Rcf2 {[%clk 0:02:36]}  Nce6 {[%clk 0:01:52]} 25. Bc1 {[%clk 0:02:29]}  Rf8 {[%clk 0:01:45]} 26. Qa5 {[%clk 0:02:26]}  Qd6 {[%clk 0:01:40]} 27. Ba3 {[%clk 0:02:22]}  Nc5 {[%clk 0:01:34]} 28. Kg1 {[%clk 0:01:54]}  Qxg3 {[%clk 0:00:44]} 29. Bxc5 {[%clk 0:01:53]}  Qe5 {[%clk 0:00:34]} 30. b4 {[%clk 0:01:48]}  Rfe8 {[%clk 0:00:18]} 31. Kh1 {[%clk 0:01:39]}  Rc7 {[%clk 0:00:15]} 32. Qxa6 {[%clk 0:01:37]}  Ne6 {[%clk 0:00:13]} 33. Bd6 {[%clk 0:01:34]}  Qc3 {[%clk 0:00:02]} 34. Bxc7 {[%clk 0:01:34]}  Nxc7 {[%clk 0:00:02]} 35. Qc6 {[%clk 0:01:31]}  Be5 {[%clk 0:00:02]} 36. Rf3 {[%clk 0:01:30]}  Qd2 {[%clk 0:00:00]} 37. b5 {[%clk 0:01:28]} 1-0


[Site "https://www.chess.com"]

[Event "Titled Tuesday Blitz August 1 Early 2023"]
[White "Fuzesabonyilaci"]
[Black "Shohat, Yotam"]
[BlackFideId "2813955"]
[WhiteElo "2305"]
[BlackElo "2498"]
[Result "1-0"]
[Round "2"]
[TimeControl "180+1"]
[Date "2023.08.01"]
[WhiteClock "0:00:14"]
[BlackClock "0:00:44"]
[Board "200"]

1. d4 {[%clk 0:03:00]}  Nf6 {[%clk 0:02:51]} 2. Nc3 {[%clk 0:03:00]}  e6 {[%clk 0:02:51]} 3. e4 {[%clk 0:02:59]}  Bb4 {[%clk 0:02:52]} 4. e5 {[%clk 0:02:55]}  Ng8 {[%clk 0:02:51]} 5. Qg4 {[%clk 0:02:53]}  g6 {[%clk 0:02:51]} 6. Bd2 {[%clk 0:02:46]}  d6 {[%clk 0:02:50]} 7. O-O-O {[%clk 0:02:44]}  Nc6 {[%clk 0:02:50]} 8. Nf3 {[%clk 0:02:42]}  h5 {[%clk 0:02:50]} 9. Qf4 {[%clk 0:02:39]}  Nh6 {[%clk 0:02:49]} 10. h3 {[%clk 0:02:27]}  Bxc3 {[%clk 0:02:48]} 11. Bxc3 {[%clk 0:02:25]}  Qe7 {[%clk 0:02:48]} 12. d5 {[%clk 0:02:08]}  exd5 {[%clk 0:02:37]} 13. exd6 {[%clk 0:02:05]}  Qf8 {[%clk 0:02:33]} 14. Bxh8 {[%clk 0:01:32]}  Qxh8 {[%clk 0:02:34]} 15. Rxd5 {[%clk 0:01:26]}  Be6 {[%clk 0:02:33]} 16. Rd2 {[%clk 0:01:13]}  O-O-O {[%clk 0:02:32]} 17. dxc7 {[%clk 0:01:09]}  Rxd2 {[%clk 0:02:33]} 18. Nxd2 {[%clk 0:01:09]}  Nf5 {[%clk 0:02:26]} 19. Bc4 {[%clk 0:01:05]}  Nfd4 {[%clk 0:02:23]} 20. Bxe6+ {[%clk 0:01:02]}  fxe6 {[%clk 0:02:24]} 21. Re1 {[%clk 0:01:00]}  e5 {[%clk 0:02:23]} 22. Qe4 {[%clk 0:00:58]}  Qf6 {[%clk 0:02:22]} 23. c3 {[%clk 0:00:54]}  Ne6 {[%clk 0:02:21]} 24. Nf3 {[%clk 0:00:52]}  Nc5 {[%clk 0:02:21]} 25. Qe3 {[%clk 0:00:50]}  Nd7 {[%clk 0:02:18]} 26. Qg5 {[%clk 0:00:50]}  Qe6 {[%clk 0:02:17]} 27. Nh4 {[%clk 0:00:42]}  Qxa2 {[%clk 0:02:13]} 28. Qxg6 {[%clk 0:00:35]}  Kxc7 {[%clk 0:02:11]} 29. Qb1 {[%clk 0:00:31]}  Qc4 {[%clk 0:02:10]} 30. Nf3 {[%clk 0:00:31]}  Nc5 {[%clk 0:02:10]} 31. Qh7+ {[%clk 0:00:24]}  Kb6 {[%clk 0:02:09]} 32. Kb1 {[%clk 0:00:23]}  e4 {[%clk 0:02:08]} 33. Nd4 {[%clk 0:00:18]}  Qd3+ {[%clk 0:02:08]} 34. Nc2 {[%clk 0:00:18]}  a5 {[%clk 0:02:03]} 35. Qxh5 {[%clk 0:00:18]}  a4 {[%clk 0:02:03]} 36. Qe2 {[%clk 0:00:18]}  Qd5 {[%clk 0:02:02]} 37. Nb4 {[%clk 0:00:18]}  Qb3 {[%clk 0:02:02]} 38. Qc2 {[%clk 0:00:17]}  Ne5 {[%clk 0:01:56]} 39. Qxb3 {[%clk 0:00:16]}  axb3 {[%clk 0:01:57]} 40. Nd5+ {[%clk 0:00:16]}  Kc6 {[%clk 0:01:57]} 41. Nf6 {[%clk 0:00:17]}  Ned3 {[%clk 0:01:56]} 42. Re2 {[%clk 0:00:16]}  Nf4 {[%clk 0:01:56]} 43. Rxe4 {[%clk 0:00:14]}  Nxe4 {[%clk 0:01:54]} 44. Nxe4 {[%clk 0:00:15]}  Nxg2 {[%clk 0:01:55]} 45. Nd2 {[%clk 0:00:15]}  Nf4 {[%clk 0:01:53]} 46. h4 {[%clk 0:00:14]}  Kd5 {[%clk 0:01:49]} 47. Nxb3 {[%clk 0:00:14]}  Ke4 {[%clk 0:01:49]} 48. Nd4 {[%clk 0:00:15]}  Nd3 {[%clk 0:01:47]} 49. f3+ {[%clk 0:00:16]}  Kf4 {[%clk 0:01:47]} 50. Kc2 {[%clk 0:00:14]}  Ne5 {[%clk 0:01:46]} 51. Kb3 {[%clk 0:00:14]}  Kg3 {[%clk 0:01:44]} 52. h5 {[%clk 0:00:13]}  Nf7 {[%clk 0:01:45]} 53. Kc4 {[%clk 0:00:12]}  Kh4 {[%clk 0:01:45]} 54. Kb5 {[%clk 0:00:12]}  Kxh5 {[%clk 0:01:45]} 55. Kb6 {[%clk 0:00:13]}  Nd6 {[%clk 0:01:45]} 56. Kc7 {[%clk 0:00:13]}  Nc4 {[%clk 0:01:46]} 57. b4 {[%clk 0:00:12]}  b6 {[%clk 0:01:44]} 58. Kc6 {[%clk 0:00:12]}  Kg5 {[%clk 0:01:44]} 59. Kb5 {[%clk 0:00:13]}  Nb2 {[%clk 0:01:37]} 60. Kxb6 {[%clk 0:00:14]}  Na4+ {[%clk 0:01:37]} 61. Ka5 {[%clk 0:00:13]}  Nxc3 {[%clk 0:01:38]} 62. b5 {[%clk 0:00:14]}  Nd5 {[%clk 0:01:05]} 63. b6 {[%clk 0:00:13]}  Nf6 {[%clk 0:01:06]} 64. b7 {[%clk 0:00:13]}  Nd7 {[%clk 0:01:06]} 65. Ne2 {[%clk 0:00:11]}  Kf5 {[%clk 0:00:57]} 66. Kb5 {[%clk 0:00:12]}  Nb8 {[%clk 0:00:46]} 67. Kb6 {[%clk 0:00:12]}  Ke6 {[%clk 0:00:47]} 68. Kc7 {[%clk 0:00:12]}  Na6+ {[%clk 0:00:47]} 69. Kc8 {[%clk 0:00:13]}  Ke5 {[%clk 0:00:41]} 70. b8=Q+ {[%clk 0:00:14]}  Nxb8 {[%clk 0:00:41]} 71. Kxb8 {[%clk 0:00:14]}  Kf5 {[%clk 0:00:42]} 72. f4 {[%clk 0:00:14]}  Ke4 {[%clk 0:00:42]} 73. Kc7 {[%clk 0:00:15]}  Kf5 {[%clk 0:00:43]} 74. Kd6 {[%clk 0:00:14]}  Ke4 {[%clk 0:00:44]} 1-0


[Site "https://www.chess.com"]